{"text_format":"1","workbook":"xlsx","n_sheets":10,"sheets":["1ª MEDIÇÃO","2ª MEDIÇÃO","3ª MEDIÇÃO","4ª MEDIÇÃO","5ª MEDIÇÃO","6ª MEDIÇÃO","7ª MEDIÇÃO","8ª MEDIÇÃO","9ª MEDIÇÃO","PLANILHA SINTÉTICA"],"not_rendered":{"charts":0,"images":2,"macros":1,"external_links":12,"defined_names":1440,"comments":0,"pivot_tables":0},"unopened":[],"bounds":{"document_bytes":16777216,"sheet_cells":100000,"rows_first":2000,"rows_last":500,"rows_between":2000,"halvings":0,"cell_chars":16384,"cell_head_chars":4096},"cells_cut":0,"cells_raw":0,"read":"whole","date_system":"1900"}

{"sheet":"1ª MEDIÇÃO","index":0,"n_rows":4,"n_cols":10,"rows_kept":4,"cut":false,"hidden":true,"merged":[[0,0,0,8],[1,0,1,8],[2,0,2,8]]}
["TRIBUNAL DE JUSTIÇA DE PERNAMBUCO"]
[{"$f":"#REF!","v":{"$error":"#REF!"}}]
["MEMÓRIA DE CALCULO - 1ª MEDIÇÃO"]
["ITEM","DESCRIÇÃO","QUANT.","LARG.","COMP.","ALT.","TAXA","TOTAL","UNID","MEMORIAL FOTOGRÁFICO"]

{"sheet":"2ª MEDIÇÃO","index":1,"n_rows":4,"n_cols":10,"rows_kept":4,"cut":false,"hidden":true,"merged":[[0,0,0,8],[1,0,1,8],[2,0,2,8]]}
["TRIBUNAL DE JUSTIÇA DE PERNAMBUCO"]
[{"$f":"#REF!","v":{"$error":"#REF!"}}]
["MEMÓRIA DE CALCULO - 2ª MEDIÇÃO"]
["ITEM","DESCRIÇÃO","QUANT.","LARG.","COMP.","ALT.","TAXA","TOTAL","UNID","MEMORIAL FOTOGRÁFICO"]

{"sheet":"3ª MEDIÇÃO","index":2,"n_rows":4,"n_cols":10,"rows_kept":4,"cut":false,"hidden":true,"merged":[[0,0,0,8],[1,0,1,8],[2,0,2,8]]}
["TRIBUNAL DE JUSTIÇA DE PERNAMBUCO"]
[{"$f":"#REF!","v":{"$error":"#REF!"}}]
["MEMÓRIA DE CALCULO - 3ª MEDIÇÃO"]
["ITEM","DESCRIÇÃO","QUANT.","LARG.","COMP.","ALT.","TAXA","TOTAL","UNID","MEMORIAL FOTOGRÁFICO"]

{"sheet":"4ª MEDIÇÃO","index":3,"n_rows":4,"n_cols":10,"rows_kept":4,"cut":false,"hidden":true,"merged":[[0,0,0,8],[1,0,1,8],[2,0,2,8]]}
["TRIBUNAL DE JUSTIÇA DE PERNAMBUCO"]
[{"$f":"#REF!","v":{"$error":"#REF!"}}]
["MEMÓRIA DE CALCULO - 4ª MEDIÇÃO"]
["ITEM","DESCRIÇÃO","QUANT.","LARG.","COMP.","ALT.","TAXA","TOTAL","UNID","MEMORIAL FOTOGRÁFICO"]

{"sheet":"5ª MEDIÇÃO","index":4,"n_rows":4,"n_cols":10,"rows_kept":4,"cut":false,"hidden":true,"merged":[[0,0,0,8],[1,0,1,8],[2,0,2,8]]}
["TRIBUNAL DE JUSTIÇA DE PERNAMBUCO"]
[{"$f":"#REF!","v":{"$error":"#REF!"}}]
["MEMÓRIA DE CALCULO - 5ª MEDIÇÃO"]
["ITEM","DESCRIÇÃO","QUANT.","LARG.","COMP.","ALT.","TAXA","TOTAL","UNID","MEMORIAL FOTOGRÁFICO"]

{"sheet":"6ª MEDIÇÃO","index":5,"n_rows":4,"n_cols":10,"rows_kept":4,"cut":false,"hidden":true,"merged":[[0,0,0,8],[1,0,1,8],[2,0,2,8]]}
["TRIBUNAL DE JUSTIÇA DE PERNAMBUCO"]
[{"$f":"#REF!","v":{"$error":"#REF!"}}]
["MEMÓRIA DE CALCULO - 6ª MEDIÇÃO"]
["ITEM","DESCRIÇÃO","QUANT.","LARG.","COMP.","ALT.","TAXA","TOTAL","UNID","MEMORIAL FOTOGRÁFICO"]

{"sheet":"7ª MEDIÇÃO","index":6,"n_rows":4,"n_cols":10,"rows_kept":4,"cut":false,"hidden":true,"merged":[[0,0,0,8],[1,0,1,8],[2,0,2,8]]}
["TRIBUNAL DE JUSTIÇA DE PERNAMBUCO"]
[{"$f":"#REF!","v":{"$error":"#REF!"}}]
["MEMÓRIA DE CALCULO - 7ª MEDIÇÃO"]
["ITEM","DESCRIÇÃO","QUANT.","LARG.","COMP.","ALT.","TAXA","TOTAL","UNID","MEMORIAL FOTOGRÁFICO"]

{"sheet":"8ª MEDIÇÃO","index":7,"n_rows":4,"n_cols":10,"rows_kept":4,"cut":false,"hidden":true,"merged":[[0,0,0,8],[1,0,1,8],[2,0,2,8]]}
["TRIBUNAL DE JUSTIÇA DE PERNAMBUCO"]
[{"$f":"#REF!","v":{"$error":"#REF!"}}]
["MEMÓRIA DE CALCULO - 8ª MEDIÇÃO"]
["ITEM","DESCRIÇÃO","QUANT.","LARG.","COMP.","ALT.","TAXA","TOTAL","UNID","MEMORIAL FOTOGRÁFICO"]

{"sheet":"9ª MEDIÇÃO","index":8,"n_rows":4,"n_cols":10,"rows_kept":4,"cut":false,"hidden":true,"merged":[[0,0,0,8],[1,0,1,8],[2,0,2,8]]}
["TRIBUNAL DE JUSTIÇA DE PERNAMBUCO"]
[{"$f":"#REF!","v":{"$error":"#REF!"}}]
["MEMÓRIA DE CALCULO - 9ª MEDIÇÃO"]
["ITEM","DESCRIÇÃO","QUANT.","LARG.","COMP.","ALT.","TAXA","TOTAL","UNID","MEMORIAL FOTOGRÁFICO"]

{"sheet":"PLANILHA SINTÉTICA","index":9,"n_rows":104,"n_cols":7,"rows_kept":104,"cut":false,"hidden":false,"merged":[[6,5,6,6],[0,7,0,8],[1,7,1,8],[2,7,2,8],[0,0,0,3],[0,5,0,6],[1,0,2,3],[1,5,1,6],[2,5,2,6],[103,0,103,5],[3,7,3,8],[4,7,4,8],[7,5,7,6],[7,4,8,4],[7,0,8,0],[7,2,8,2],[7,3,8,3],[7,1,8,1],[5,7,5,8],[6,7,6,8],[3,0,4,3],[3,5,3,6],[4,5,4,6],[5,0,6,3],[5,5,5,6]]}
["PODER JUDICIÁRIO",null,null,null,"Obra:","SERVIÇO DE IMPLANTAÇÃO DE GERADOR PERMANENTE NO FÓRUM THOMAZ DE AQUINO"]
["TRIBUNAL DE JUSTIÇA DE PERNAMBUCO",null,null,null,"Local:","Av. Martins de Barros , 593 - Santo Antônio - Recife - PE."]
[null,null,null,null,"Contrato:","009/2025 -TJPE"]
["DIRETORIA DE ENGENHARIA E ARQUITETURA",null,null,null,"Situação:","Encerrada"]
[null,null,null,null,"Contratada:","BRITO E MELO INCORPORAÇÕES LTDA "]
["QUANTITATIVOS E PREÇOS CONTRATADOS",null,null,null,"Valor Total:",{"$f":"G104","v":499488.99}]
[null,null,null,null,"DATA ASSINATURA DO CONTRATO","2025-01-29"]
["ITEM","Cód. Efisco","DESCRIÇÃO","UN","QUANT. TOTAL","TOTAL"]
[null,null,null,null,null,"P. UNIT","P. TOTAL"]
["1.",null,"ART'S","",null,0]
["1.1","527411-7","ART EXECUÇÃO DE OBRA - RESPONSÁVEL TÉCNICO DA CONTRATADA.","un",1,330.44,{"$f":"TRUNC(F11*E11,2)","v":330.44}]
["2.",null,"ADMINISTRAÇÃO DA OBRA / MÁQUINAS E EQUIPAMENTOS",null,null,null,{"$f":"TRUNC(F12*E12,2)","v":0}]
["2.1","401010-8","ADMINISTRAÇÃO LOCAL PELO PERÍODO DA OBRA","un/mês",2,31350.73,62701.46]
["2.2","570104-0","MOBILIZAÇÃO DA OBRA (PESSOAL, MÁQUINAS E EQUIPAMENTOS).","un",1,1631.56,1631.56]
["2.3","442745-9","LOCACAO DE ANDAIME METALICO TUBULAR DE ENCAIXE, TIPO DE TORRE, CADA PAINEL COM LARGURA DE 1 ATE 1,5 M E ALTURA DE *1,00* M, INCLUINDO DIAGONAL, BARRAS DE LIGACAO, SAPATAS OU RODIZIOS, PLATAFORMA METÁLICA, GUARDA CORPO METÁLICO, ESCADA E DEMAIS ITENS NECESSARIOS A MONTAGEM (NAO INCLUI INSTALACAO)","mXmês",60.27,37.75,2275.19]
["2.4","478652-1","MONTAGEM E DESMONTAGEM DE ANDAIME TUBULAR TIPO \"TORRE\" (EXCLUSIVE ANDAIME E LIMPEZA). AF_03/2024","m",60.27,34.090000000000003,2054.6]
["3.",null,"CANTEIRO DE OBRA","",null,0,0]
["3.1","295382-0","PLACA DE OBRA EM LONA PLÁSTICA  IMPRESSÃO DIGITAL ALTA RESOLUÇÃO COM ACABAMENTO EM ILHÓS, FIXAÇÃO EM ABRAÇADEIRAS DE NYLON, ESTRUTURA EM FERRO GALVANIZADO.","m²",4,476.78,1907.12]
["3.2","565249-9","FRETE PARA ENTREGA OU RETIRADA DE CONTAINER PARA OBRA EM RECIFE  EM GUINDAUTO (MUNCK) MODELO ARGOS 20.5 COM CAPACIDADE PARA 6,0 TON A 4,0 M DE RAIO. ","un",4,2140.42,8561.68]
["3.3","593779-5","LOCAÇÃO DE CONTAINER ESCRITÓRIO COM BANHEIRO CONTENDO 01 VASO SANITÁRIO, 01 LAVATÓRIO E 01 CHUVEIRO, JANELA EM VIDRO, PORTAS, LUMINÁRIAS, TOMADAS, FORRO EM PVC, AR CONDICIONADO E ISOLAMENTO TERMO-ACÚSTICO EM ISOPOR (6,00 X 2,35M). NÃO INCLUI MOBILIZAÇÃO E DESMOBILIZAÇÃO.","un/mês",2,1361.75,2723.5]
["3.4","593781-7","LOCAÇÃO DE CONTAINER BANHEIRO COM 04 VASOS SANITÁRIOS, 02 LAVATÓRIOS, 01 MICTÓRIO CALHA E 04 CHUVEIROS (6,00 X 2,35M). NÃO INCLUI MOBILIZAÇÃO E DESMOBILIZAÇÃO.","un/mês",2,1588.71,3177.42]
["3.5","601806-8","LIGAÇÃO PROVISÓRIA DE ENERGIA. (CONTAINER)","un",2,2286.96,4573.92]
["3.6","605422-6","LIGAÇÕES PROVISÓRIAS DE ÁGUA E ESGOTO SANITÁRIO. (CONTAINER)","un",2,636.43000000000006,1272.8599999999999]
["3.7","496193-5","TAPUME COM TELHA METÁLICA. AF_03/2024","m²",96.36,106.80000000000001,10291.24]
["3.8","526870-2","PAREDE DE MADEIRA COMPENSADA PARA CONSTRUÇÃO TEMPORÁRIA EM CHAPA SIMPLES, INTERNA, COM ÁREA LÍQUIDA MAIOR OU IGUAL A 6 M², COM VÃO. AF_03/2024","m²",61.15,107.89,6597.47]
["3.9","608875-9","PISO PARA CONSTRUÇÃO TEMPORÁRIA EM MADEIRA, SEM REAPROVEITAMENTO. AF_03/2024","m²",19.64,94.01,1846.35]
["4.",null,"SERVIÇOS PRELIMINARES / REMOÇÕES / RETIRADAS","",null,null,0]
["4.1","489974-1","DEMOLIÇÃO DE ALVENARIA PARA QUALQUER TIPO DE BLOCO, DE FORMA MECANIZADA, SEM REAPROVEITAMENTO. AF_09/2023","m³",0.16,69.23,11.07]
["4.2","605062-0","EMBOÇO, EM ARGAMASSA TRAÇO 1:2:8, PREPARO MANUAL, APLICADO MANUALMENTE EM PAREDES INTERNAS DE AMBIENTES COM ÁREA ENTRE 5M² E 10M², E = 17,5MM, COM TALISCAS. AF_03/2024","m²",0.48,48.260000000000005,23.16]
["4.3","203057-8","DEMOLIÇÃO DE FORROS","m²",9.9700000000000006,11.75,117.14]
["4.4","440610-9","ESCAVAÇÃO MECÂNICA VALAS EM QUALQUER TIPO DE SOLO EXCETO ROCHA, PROF. 0<H<4 M","m³",7.28,10.59,77.09]
["4.5","574634-5","RETIRADA E REASSENTAMENTO DE PISO EM PEDRA PORTUGUESA ASSENTADO SOBRE ARGAMASSA SECA DE CIMENTO E AREIA, TRAÇO 1:3, REJUNTADO COM CIMENTO COMUM. ","m²",6.45,100.88,650.66999999999996]
["4.6","482720-1","REMOÇÃO DE PISO DE BLOCO INTERTRAVADO OU DE PEDRA PORTUGUESA, DE FORMA MANUAL, COM REAPROVEITAMENTO. AF_09/2023","m²",1.46,21.22,30.98]
["4.7","451483-1","DEMOLIÇÃO PARCIAL DE PAVIMENTAÇÃO ASFÁLTICA C/MARTELETE PNEUMÁTICO.","m²",14.45,24.37,352.14]
["4.8","566859-0","DEMOLIÇÃO DE PISO DE CONCRETO SIMPLES, DE FORMA MECANIZADA COM MARTELETE, SEM REAPROVEITAMENTO. AF_09/2023","m³",0.03,148.44,4.45]
["4.9","479123-1","REATERRO MANUAL APILOADO COM SOQUETE.","m³",2.33,72.19,168.2]
["4.10","457686-1","EXECUÇÃO E COMPACTAÇÃO DE BASE E OU SUB-BASE PARA PAVIMENTAÇÃO DE SOLO (PREDOMINANTEMENTE ARGILOSO) BRITA - 50/50 - EXCLUSIVE SOLO, ESCAVAÇÃO, CARGA E TRANSPORTE. AF_11/2019","m³",0.71,122.25,86.79]
["4.11","477471-0","EXECUÇÃO E COMPACTAÇÃO DE BASE E OU SUB BASE PARA PAVIMENTAÇÃO DE BRITA GRADUADA SIMPLES - EXCLUSIVE CARGA E TRANSPORTE. AF_11/2019","m³",0.28000000000000003,215.4,60.31]
["4.12","441829-8","TRANSPORTE COM CAMINHÃO BASCULANTE DE 10 M³, EM VIA URBANA EM LEITO NATURAL (UNIDADE: M3XKM). AF_07/2020","m³XKm",1.64,3.87,6.34]
["4.13","528880-0","TRANSPORTE HORIZONTAL COM JERICA DE 60 L, DE MASSA/ GRANEL (UNIDADE: M3XKM). AF_07/2019","m³XKm",0.31,1784.32,553.13]
["4.14","553633-2","ALUGUEL DE CAÇAMBA ESTACIONÁRIA COM ATÉ 6M³ COM DESTINAÇÃO FINAL DE RESÍDUOS SÓLIDOS.","un",3,644.1,1932.3]
["4.15","465159-6","TAXA DE DESCARTE DE RESÍDUOS DA CONSTRUÇÃO CIVIL.","t",23.29,37.68,877.56]
["5.",null,"BASE PARA GERADOR","",null,0,0]
["5.1","  430213-3","ATERRO C/COMPACTAÇÃO MECÂNICA E CONTROLE, INCLUSO MATERIAL E FRETE.","m³",8.15,126.08,1027.55]
["5.2","441363-6","FABRICAÇÃO DE FÔRMA PARA LAJES, EM CHAPA DE MADEIRA COMPENSADA RESINADA, E = 17 MM. AF_09/2020","m²",4.71,60.82,286.45999999999998]
["5.3","440995-7","ARMAÇÃO DE LAJE DE ESTRUTURA CONVENCIONAL DE CONCRETO ARMADO UTILIZANDO AÇO CA-50 DE 8,0 MM - MONTAGEM. AF_06/2022","kg",232,13.41,3111.12]
["5.4","565304-5","CONCRETAGEM DE EDIFICAÇÕES (PAREDES E LAJES) FEITAS COM SISTEMA DE FORMAS MANUSEÁVEIS, COM CONCRETO USINADO BOMBEÁVEL FCK= 35MPA - LANÇAMENTO, ADENSAMENTO E ACABAMENTO.","m³",3.1,726.33,2251.62]
["6.",null,"FORRO","",null,0,0]
["6.1","474374-1","FORRO EM PLACAS DE GESSO, PARA AMBIENTES COMERCIAIS. AF_08/2023_PS","m²",9.8000000000000007,54.480000000000004,533.9]
["6.2","441105-6","EMASSAMENTO COM MASSA LÁTEX, APLICAÇÃO EM TETO, DUAS DEMÃOS, LIXAMENTO MANUAL. AF_04/2023","m²",9.8000000000000007,35.739999999999995,350.25]
["6.3","457784-1","FUNDO SELADOR ACRÍLICO, APLICAÇÃO MANUAL EM TETO, UMA DEMÃO. AF_04/2023","m²",9.8000000000000007,6.54,64.09]
["6.4","577826-8","PINTURA LÁTEX ACRÍLICA PREMIUM, APLICAÇÃO MANUAL EM TETO, DUAS DEMÃOS. AF_04/2023","m²",9.8000000000000007,18.66,182.86]
["7.",null,"GRADIL","",null,0,0]
["7.1","608889-9","FORNECIMENTO E ASSENTAMENTO DE GRADIL ELETROFUNDIDO (TIPO ELETROGRADI BARRA 25X2MM, FIO 4,8 MM E MALHA 65X132MM), COM PINTURA ELETRÓSTÁTICA TIPO SITELA OU SIMILAR.","m²",56.16,419.4,23553.5]
["7.2","608819-8","FORNECIMENTO E ASSENTAMENTO DE PORTÃO GRADIL DE GIRO DUAS FOLHAS ELETROFUNDIDO (TIPO ELETROGRADI BARRA 25X2MM, FIO 4,8 MM E MALHA 65X132MM) COM PINTURA ELETRÓSTÁTICA. SITELA OU SIMILAR.","m²",5.2,1359.1,7067.32]
["8.",null,"FACHADA","",null,0,0]
["8.1","554953-1","ALVENARIA DE VEDAÇÃO DE BLOCOS CERÂMICOS FURADOS NA HORIZONTAL DE 9X19X19 CM (ESPESSURA 9 CM) E ARGAMASSA DE ASSENTAMENTO COM PREPARO MANUAL. AF_12/2021","m²",6,102.4,614.4]
["8.2","440309-6","CHAPISCO APLICADO EM ALVENARIA (SEM PRESENÇA DE VÃOS) E ESTRUTURAS DE CONCRETO DE FACHADA, COM COLHER DE PEDREIRO.  ARGAMASSA TRAÇO 1:3 COM PREPARO MANUAL. AF_10/2022","m²",6,8.61,51.66]
["8.3","441891-3","EMBOÇO OU MASSA ÚNICA EM ARGAMASSA TRAÇO 1:2:8, PREPARO MANUAL, APLICADA MANUALMENTE EM PANOS DE FACHADA COM PRESENÇA DE VÃOS, ESPESSURA DE 25 MM. AF_08/2022","m²",6,71.84,431.04]
["8.4","502139-1","APLICAÇÃO MANUAL DE MASSA ACRÍLICA EM PANOS DE FACHADA SEM PRESENÇA DE VÃOS, DE EDIFÍCIOS DE MÚLTIPLOS PAVIMENTOS, DUAS DEMÃOS. AF_03/2024","m²",6,17.96,107.76]
["8.5","485282-6","APLICAÇÃO MANUAL DE FUNDO SELADOR ACRÍLICO EM PANOS CEGOS DE FACHADA (SEM PRESENÇA DE VÃOS) DE EDIFÍCIOS DE MÚLTIPLOS PAVIMENTOS. AF_03/2024","m²",5.28,5.53,29.19]
["8.6","432006-9","PINTURA LÁTEX ACRÍLICA PREMIUM, APLICAÇÃO MANUAL EM PAREDES, DUAS DEMÃOS. AF_04/2023","m²",5.28,15.879999999999999,83.84]
["8.7",null,"FORNECIMENTO E ASSENTAMENTO DE RODAPÉ EM GRANITO TIPO CINZA, ALTURA 60 CM.","m",1.2,363.85,436.62]
["9.",null,"PISOS E REVESTIMENTOS","",null,null,0]
["9.1","522796-8","PISO EM PEDRA PORTUGUESA ASSENTADO SOBRE ARGAMASSA SECA DE CIMENTO E AREIA, TRAÇO 1:3, REJUNTADO COM CIMENTO COMUM. AF_05/2020","m²",4.2,276.02,1159.28]
["9.2","451246-4","RECOMPOSIÇÃO DE CAPA EM CONCRETO ASFÁLTICO (CBUQ).","m²",2.16,139.72,301.79000000000002]
["9.3","512775-0","IMPRIMAÇÃO BETUMINOSA LIGANTE","m²",1.38,9.0500000000000007,12.48]
["9.4","295038-3","REGULARIZAÇÃO DE PISO COM ARGAMASSA DE CIMENTO E AREIA, TRAÇO 1:4, E=3CM, PARA REVESTIMENTO DE PISO.","m²",0.4,53.92,21.56]
["10.",null,"DIVERSOS","",null,null,0]
["10.1","605151-0","FRETE PARA TRANSPORTE DE GERADOR 800KVA DE 6 TONELADAS, ATRAVÉS DE CAMINHÃO MUNK TRUNCADO, COM PERCURSO DE OLINDA (FÓRUM LOURENÇO JOSÉ RIBEIRO) PARA RECIFE (FÓRUM THOMAZ DE AQUINO).","un",1,2895.27,2895.27]
["11.",null,"ELÉTRICA","",null,null,0]
["11.1.",null,"CONDUTORES","",null,null,0]
["11.1.1","608900-3","CABO DE COBRE FLEXÍVEL, TÊMPERA MOLE E ENCORDOAMENTO CLASSES 4 E 5, SEÇÃO NOMINAL DE 185 MM², ISOLAÇÃO ANTI-CHAMA EM COMPOSTO TERMOPLÁSTICO NÃO HALOGENADO, COM BAIXA EMISSÃO DE FUMAÇA, 0,6/1,0KV - 90ºC, INCLUSIVE INSTALAÇÃO.","m",910,275.02999999999997,250277.3]
["11.1.2","549513-0","CABO DE COBRE FLEXÍVEL, TÊMPERA MOLE E ENCORDOAMENTO CLASSES 4 E 5, SEÇÃO NOMINAL DE 240 MM², ISOLAÇÃO ANTI-CHAMA EM COMPOSTO TERMOPLÁSTICO NÃO HALOGENADO, COM BAIXA EMISSÃO DE FUMAÇA, 0,6/1,0KV - 90ºC, INCLUSIVE INSTALAÇÃO.","m",99.9,359.65,35929.03]
["11.2.",null,"CONDUTOS","",null,null,0]
["11.2.1","457072-3","ELETRODUTO RÍGIDO ROSCÁVEL, PVC, DN 85 MM (3\"), COM LUVA DE ROSCA INTERNA E CONEXÕES, INSTALAÇÃO ENTERRADA ENVELOPADO EM CONCRETO ESTRUTURAL FCK ≥ 20 MPA, TRAÇO 1:2:7:3 (10X50CM), INCLUINDO ESCAVAÇÃO E FITA DE ADVERTÊNCIA DE REDE ELÉTRICA ENTERRADA.  (COM 10CM DE ALTURA E 50CM DE BASE) – FORNECIMENTO E INSTALAÇÃO.","m",67.5,153.64999999999998,{"$f":"TRUNC(F76*E76,2)","v":10371.370000000001}]
["11.2.2","465253-3","ELETROCALHA PERFURADA, GALVANIZADA, DIM.: 300X100MM, CHAPA 18, INCLUSIVE CONEXÕES, ACESSÓRIOS DE DERIVAÇÃO, MATERIAIS PARA FIXAÇÃO E SUSTENTAÇÃO. FORNECIMENTO E INSTALAÇÃO.      ","m",3.2,227.48000000000002,727.93]
["11.2.3","468869-4","ELETROCALHA PERFURADA, GALVANIZADA, DIM.: 400X100MM, CHAPA 16, INCLUSIVE CONEXÕES, ACESSÓRIOS DE DERIVAÇÃO, MATERIAIS PARA FIXAÇÃO E SUSTENTAÇÃO. FORNECIMENTO E INSTALAÇÃO.      ","m",5.8,283.92,1646.73]
["11.2.4","605094-8","CURVA HORIZONTAL 90° 300X100MM COM TAMPA, LEITO PARA CABOS, CHAPA 18 – FORNECIMENTO E INSTALAÇÃO.","un",5,209.83,1049.1500000000001]
["11.2.5","608894-5","CURVA VERTICAL EXTERNA 45° 300X100MM COM TAMPA, LEITO PARA CABOS, CHAPA 18 – FORNECIMENTO E INSTALAÇÃO.","un",1,108.5,108.5]
["11.2.6","608846-5","CURVA VERTICAL EXTERNA 90° 300X100MM COM TAMPA, LEITO PARA CABOS, CHAPA 18 FORNECIMENTO E INSTALAÇÃO.","un",1,192.34,192.34]
["11.2.7","608895-3","CURVA VERTICAL INTERNA 45° 300X100MM COM TAMPA, LEITO PARA CABOS, CHAPA 18 – FORNECIMENTO E INSTALAÇÃO.","un",1,108.58,{"$f":"TRUNC(F82*E82,2)","v":108.58}]
["11.2.8","605103-0","CURVA VERTICAL INTERNA 90° 300X100MM COM TAMPA, LEITO PARA CABOS, CHAPA 18 FORNECIMENTO E INSTALAÇÃO.","un",1,185.68,{"$f":"TRUNC(F83*E83,2)","v":185.68}]
["11.2.9","608852-0","SUPORTE DE FIXAÇÃO DE LEITO PARA CABOS DE 300X100MM, NA PAREDE, ATRAVÉS DE SUPORTE TIPO MÃO FRANCESA REFORÇADA, PARAFUSO E BUCHA S8 – FORNECIMENTO E INSTALAÇÃO.","un",12,102.35,1228.2]
["11.2.10","608855-4","LEITO PARA CABOS EM CHAPA DE AÇO GALVANIZADO # 18, COM TAMPA LARGURA 300 MM X ALTURA 100 MM, INSTALAÇÃO SUPERIOR – FORNECIMENTO E INSTALAÇÃO.","m",35.1,293.55,10303.6]
["11.3.",null,"CAIXAS","",null,null,0]
["11.3.1","488600-3","CAIXA ENTERRADA ELÉTRICA RETANGULAR, EM ALVENARIA COM BLOCOS DE CONCRETO, FUNDO COM BRITA, DIMENSÕES INTERNAS: 0,6X0,6X0,6 M. AF_12/2020","un",2,447.93,895.86]
["11.3.2","490289-0","CAIXA DE PASSAGEM METÁLICA 80X80X20CM, COM TAMPA (SOBREPOR), FORNECIMENTO E INSTALAÇÃO.","un",1,405.20000000000005,405.2]
["11.4.",null,"QUADRO ELÉTRICO","",null,null,0]
["11.4.1","608863-5","QUADRO DE PROTEÇÃO DE ENERGIA, EM CHAPA METÁLICA, 02 DISJUNTORES DE 800A, COM BARRAMENTO TRIFÁSICO, BARRAS DE NEUTRO E TERRA E DEMAIS ACESSÓRIO – FORNECIMENTO E INSTALAÇÃO.","un",1,21206.07,21206.07]
["12.",null,"SPDA",null,null,null,0]
["12.1.",null,"CONDUTORES",null,null,null,0]
["12.1.1","605290-8","CABO DE COBRE NU, TÊMPERA MEIO-DURO, ENCORDOAMENTO CLASSE 2A/3A, SEÇÃO NOMINAL DE 35 MM², PARA ATERRAMENTO, INSTALADO EM VALA COM 0,5 M DE PROFUNDIDADE, INCLUSIVE ESCAVAÇÃO E REATERRO.","m",3.3,79.83,263.43]
["12.1.2","607297-6","CABO DE COBRE NU, TÊMPERA MEIO-DURO, ENCORDOAMENTO CLASSE 2A/3A, SEÇÃO NOMINAL DE 50 MM², PARA ATERRAMENTO, INSTALADO EM VALA COM 0,5 M DE PROFUNDIDADE, INCLUSIVE ESCAVAÇÃO E REATERRO.","m",7.3,98.81,721.31]
["12.2.",null,"CAPTAÇÃO E ATERRAMENTO","",null,null,0]
["12.2.1","  515654-8","CAIXA DE PASSAGEM DE ALVENARIA DE BLOCOS CERÂMICO 9X19X39CM, DIMENSÕES DE 30X30X50CM, COM REVESTIMENTO INTERNO EM CHAPISCO E REBOCO, TAMPA DE CONCRETO ESP.5CM E LASTRO DE BRITA 5 CM.","un",4,178.53,714.12]
["12.2.2","398109-6","HASTE DE ATERRAMENTO (TIPO COPPERWELD) DE 5/8\" X 3,0 M - FORNECIMENTO E INSTALAÇÃO.","un",4,157.23000000000002,628.91999999999996]
["12.2.3","450988-9","SOLDA EXOTÉRMICA PARA CABO / HASTE 50MM² - FORNECIMENTO E INSTALAÇÃO.","un",13,54.7,711.1]
["12.2.4","506672-7","TERMINAL A COMPRESSÃO EM COBRE ESTANHADO PARA CABO DE 16MM², 1 FURO, INCLUSIVE PARAFUSO SEXTAVADO EM AÇO INOX 1/4\"X1.1/4\", ARRUELAS LISAS E PORCA SEXTAVADA DE 1/4\" - FORNECIMENTO E INSTALAÇÃO.","un",3,13.02,39.06]
["13.",null,"FINAL DA OBRA","",null,0,0]
["13.1","486601-0","REMOÇÃO DE TAPUME/ CHAPAS METÁLICAS E DE MADEIRA, DE FORMA MANUAL, SEM REAPROVEITAMENTO. AF_09/2023","m²",96.36,3.64,350.75]
["13.2","431654-1 ","LIMPEZA GERAL DA OBRA","m²",83.44,3.9,325.41000000000003]
["13.3","592274-7","DESMOBILIZAÇÃO DA OBRA (PESSOAL, MÁQUINAS E EQUIPAMENTOS).","un",1,1629.65,1629.65]
["TOTAL DA OBRA:",null,null,null,null,null,{"$f":"SUM(G11:G103)","v":499488.99}]